Cogmind - Beta 13 @@@ ROGUE MODE // 2024.04.08 @ 05:48:00 Player: Trekki Result: Destroyed by G-50 Soldier with Heavy Laser Performance ------------- Evolutions (4) 2000 Regions Visited (5) 1000 Robots Destroyed (102) 510 Value Destroyed (3473) 3473 Prototype IDs (1) 20 Alien Tech Used (0) 0 Bonus (47) 47 TOTAL SCORE: 7050 Bonus ------- High Alert Combat Kills 47 Cogmind --------- Core Integrity 0/850 Matter 63/300 Energy 80/100 System Corruption 9% Temperature Cool (9) Movement Core (1350) Ox26 Location -6/Factory Parts ------- > --- POWER (1) -------- (None) > --- PROPULSION (5) --- (None) > --- UTILITY (6) ------ Huge Storage Unit > --- WEAPON (3) ------- (None) > --- INVENTORY (25) --- Large Storage Unit Improved Datajack Peak State ------------ > --- POWER ------------ Angular Momentum Engine > --- PROPULSION ------- Armored Treads Armored Treads Medium Treads Medium Treads Medium Treads > --- UTILITY ---------- Improved Heat Sink Huge Storage Unit Improved Medium Armor Plating Shield Generator Hacking Suite Hacking Suite > --- WEAPON ----------- High-powered Field Laser Minigun Gauss Rifle > --- INVENTORY -------- Light Angular Momentum Engine Light Fission Core Compact Wheel Compact Wheel Armored Huge Wheel Armored Huge Wheel Large Storage Unit Weight Redist. System Hardened Light Armor Plating Insulated Plating Hardlight Generator Gatling Laser Minigun Minigun Gauss Rifle Flak Gun Proton Missile Launcher Mini Grenade Launcher Improved Datajack [Rating: 57] Favorites ----------- Power Light Ion Engine Engine Light Ion Engine Power Core Light Nuclear Core Propulsion Armored Treads Treads Armored Treads Wheel Compact Wheel Hover Unit Backup Propulsion III Utility Hacking Suite Device Shield Generator Storage Huge Storage Unit Processor Signal Interpreter Hackware Hacking Suite Protection Hardened Light Armor Plating Weapon Minigun Energy Gun EM Pulse Gun Ballistic Gun Minigun Launcher Proton Missile Launcher Special Weapon Mining Laser Impact Weapon Great Maul Slashing Weapon Carbide Saw Special Melee Weapon Improved Datajack Build | -11 -10 -9 -8 -7 -6 ------- Run | Yrd Mat Mat Mat Fac Fac Slots Evolved 8 | . . 2 2 2 2 Power . | . . . . . . Propulsion 3 | . . 1 1 1 . Utility 4 | . . 1 1 . 2 Weapon 1 | . . . . 1 . Parts Attached 142 | 7 8 29 15 26 57 Power 11 | 1 . 2 1 2 5 Engine 6 | 1 . 2 . 1 2 Core 5 | . . . 1 1 3 Reactor . | . . . . . . Propulsion 24 | 2 2 4 2 4 10 Treads 14 | . . 3 2 4 5 Leg . | . . . . . . Wheel 9 | 2 2 1 . . 4 Hover 1 | . . . . . 1 Flight . | . . . . . . Utility 35 | 2 4 6 10 3 10 Device 12 | 1 . 1 3 . 7 Storage 9 | 1 2 1 4 1 . Processor 2 | . 1 1 . . . Hackware 4 | . 1 1 . 1 1 Protection 8 | . . 2 3 1 2 Artifact . | . . . . . . Weapon 72 | 2 2 17 2 17 32 Energy Gun 15 | 2 2 6 . 2 3 Energy Cannon . | . . . . . . Ballistic Gun 32 | . . 5 2 10 15 Ballistic Cannon . | . . . . . . Launcher 9 | . . . . 1 8 Special Weapon 1 | . . 1 . . . Impact Weapon 2 | . . 2 . . . Slashing Weapon 7 | . . . . 2 5 Piercing Weapon . | . . . . . . Special Melee Weapon 6 | . . 3 . 2 1 Unidentified Prototypes 1 | . . . . 1 . Corrupted Parts 2 | . 2 . . . . System Corruption 7 | . 7 . . . . Parts Lost 58 | . 2 5 1 6 44 Power 7 | . . 2 . 1 4 Propulsion 19 | . 2 . 1 3 13 Utility 14 | . . 1 . 1 12 Weapon 18 | . . 2 . 1 15 Highest Loss Streak 21 | . 2 3 1 1 21 To Critical Strikes 3 | . . . . 1 2 Average Slot Usage (%) 97 | . 100 99 100 99 92 Engine 5 | . 14 11 2 . 3 Core 3 | . . . 6 6 2 Treads 25 | . . 25 36 37 24 Wheel 7 | . 28 7 . . 3 Device 5 | . 4 . 3 2 13 Storage 8 | . 14 11 9 7 6 Processor 5 | . 7 5 9 6 . Hackware 9 | . 1 9 9 12 11 Protection 3 | . . 6 5 . 6 Energy Gun 7 | . 28 3 . 4 3 Ballistic Gun 11 | . . 7 18 17 13 Impact Weapon 1 | . . 9 . . . Naked Turns . | . . . . . . Heaviest Build 118 | 13 28 36 34 111 118 Greatest Support 124 | 32 32 60 80 108 124 Greatest Overweight (x) 30 | . . . . 1 30 Average Overweight (x) . | . . . . . . Largest Inventory Capacity 25 | 8 15 15 25 25 25 Average Capacity 19 | 7 12 15 15 24 25 Most Carried 25 | 8 15 15 15 25 25 Average Carried 16 | 4 10 14 14 20 19 Final Capacity 25 | 8 15 15 15 25 25 Final Carried 24 | 8 15 15 15 24 2 Class Distribution -------------------- 41% | Mutant 19% | Hacker-Tank 9% | Gunner 9% | Scavenger-Mutant 7% | Scavenger-Skirmisher 5% | Scavenger-Gunner 3% | Scavenger-Tank Dominant Class ---------------- Mutant | -10/Materials Mutant | -9/Materials Scavenger-Mutant | -8/Materials Gunner | -7/Factory Hacker-Tank | -6/Factory Resources | -11 -10 -9 -8 -7 -6 ----------- Run | Yrd Mat Mat Mat Fac Fac Matter Collected 2856 | 270 87 307 333 668 1191 Remotely . | . . . . . . Salvage Created 4094 | 123 581 317 546 786 1741 Parts 226 | 5 42 20 31 44 84 Haulers Intercepted 4 | . 2 2 . . . Recyclers Shooed 5 | 1 3 . . . 1 Parts Field Recycled . | . . . . . . Retrieved Matter . | . . . . . . Parts Self-Destructed . | . . . . . . Prevented . | . . . . . . Kills | -11 -10 -9 -8 -7 -6 ------- Run | Yrd Mat Mat Mat Fac Fac Combat Hostiles Destroyed 71 | . 10 4 14 18 25 Melee 2 | . . 2 . . . Guns 62 | . 9 2 14 17 20 AOE 6 | . 1 . . . 5 Classes Destroyed 16 | 2 6 2 . 3 3 Worker 5 | . 2 . . 1 2 Builder 4 | . . 1 . . 3 Tunneler 3 | 1 1 1 . . . Hauler 4 | . 2 2 . . . Recycler 5 | 1 1 . . . 3 Mechanic 1 | . . . . . 1 Operator 6 | . 2 2 1 1 . Watcher 3 | . 2 . . . 1 Swarmer 17 | . 6 1 6 3 1 Grunt 25 | . 4 . 6 5 10 Duelist 1 | . . . . . 1 Sentry 8 | . . 3 2 3 . Specialist 4 | . . . . 2 2 Hunter 6 | . . . . 1 5 Programmer 9 | . . . . 4 5 Heavy 1 | . . . . . 1 Best Kill Streak 9 | 2 3 2 4 3 9 Combat Bots Only 6 | . 3 1 4 3 6 Max Kills in Single Turn 3 | 1 2 1 2 1 3 Gunslinging 1 | . 1 . 1 . . Exploded 1 | . 1 . . . 1 Melee 1 | . . 1 . . . Uniques/NPCs Destroyed . | . . . . . . Combat | -11 -10 -9 -8 -7 -6 -------- Run | Yrd Mat Mat Mat Fac Fac Hostile Shots Fired 896 | . 24 57 101 228 486 Missed 264 | . 8 22 20 76 138 Damage Taken 9004 | . 234 612 977 1793 5388 Core 1167 | . 45 55 62 140 865 Absorbed by Shields 688 | . . . . . 688 Ignored by Resistances 93 | . . . . . 93 Regen/Repaired (Parts) 53 | . . 53 . . . Core Remaining (%) 87 | 100 82 86 88 80 . Volleys Fired 294 | 5 44 18 61 62 104 Largest 3 | 2 2 2 2 3 3 Hottest 123 | 80 80 105 43 121 123 Shots Fired 695 | 10 88 33 122 180 262 Gun 677 | 10 88 31 122 180 246 Cannon . | . . . . . . Launcher 16 | . . . . . 16 Special 2 | . . 2 . . . Kinetic 475 | . . 17 122 128 208 Thermal 99 | . . 9 . 52 38 Explosive 11 | . . . . . 11 Electromagnetic 110 | 10 88 7 . . 5 Robot Hit Streak 19 | 4 8 15 8 19 16 Robot Miss Streak 9 | 1 4 1 3 7 9 Penetration Max 1 | . . . . . 1 Secondary Targets 4 | . 2 . 1 . 1 Max Gunslinging Chain 1 | . 1 . 1 . 1 Shots Hit Robots 501 | 6 54 42 82 122 195 Core Hits 250 | 2 26 12 36 57 117 Critical Kills 2 | . . . . . 2 Critical Parts Destroyed 3 | . . 2 . 1 . Critical Strikes 16 | . 1 2 . 7 6 Burn 8 | . . . . 6 2 Destroy 4 | . . 1 . 1 2 Corrupt 1 | . 1 . . . . Smash 1 | . . 1 . . . Sever 2 | . . . . . 2 Melee Attacks 47 | . . 18 . 19 10 Impact 12 | . . 12 . . . Slashing 25 | . . . . 15 10 Piercing . | . . . . . . Sneak Attacks 12 | . . 8 . 3 1 Combat Hostiles . | . . . . . . Follow-up Attacks 2 | . . . . . 2 Damage Inflicted 10030 | 79 893 793 899 2107 5259 Guns 7533 | 79 732 325 899 2088 3410 Cannons . | . . . . . . Explosions 1853 | . 161 46 . . 1646 Melee 605 | . . 422 . . 183 Ramming 39 | . . . . 19 20 Kinetic 5183 | . . 135 899 1427 2722 Thermal 2020 | . 161 157 . 661 1041 Explosive 963 | . . . . . 963 Electromagnetic 1220 | 79 732 79 . . 330 Impact 422 | . . 422 . . . Slashing 183 | . . . . . 183 Piercing . | . . . . . . Highest Corruption 9 | . 7 . . 8 9 Average Corruption 4 | . 5 . . 4 4 Corruption Purged . | . . . . . . Corruption Blocked . | . . . . . . Effects 72 | . 7 . . 35 30 Message Errors 18 | . . . . 11 7 Matter Fused 10 | . 2 . . 5 3 Heat Flow Errors 6 | . 1 . . 4 1 Energy Discharges 9 | . 1 . . 4 4 Parts Rejected 1 | . . . . 1 . Data Loss (minor) 15 | . 3 . . 6 6 Data Loss (major) 1 | . . . . . 1 Misfires 2 | . . . . 1 1 Alerts 1 | . . . . . 1 Weapon Failures 9 | . . . . 3 6 Overload Shots . | . . . . . . Overflow Damage 399 | . 43 203 . . 153 Projectiles . | . . . . . . Explosions 186 | . 43 . . . 143 Melee 213 | . . 203 . . 10 Knockbacks . | . . . . . . Impact . | . . . . . . Kinetic . | . . . . . . Secondary . | . . . . . . Self-Inflicted Damage 194 | . 53 36 . . 105 Shots 5 | . 1 1 . . 3 Rammed 2 | . . . . 1 1 Targets Rammed 3 | . . . . 2 1 Kicked . | . . . . . . Crushed 1 | . . . . 1 . Highest Temperature 288 | 36 117 173 36 288 168 Average Temperature 61 | 18 29 50 13 102 41 Received Heat Transfer 1790 | . 69 129 369 312 911 Effects 1 | . . . . 1 . Energy Bleed 1 | . . . . 1 . Siege Activations . | . . . . . . Robots Corrupted . | . . . . . . Combat Hostiles . | . . . . . . Parts Fried 8 | . 2 6 . . . Impact Corruptions 6 | . . 6 . . . Robots Melted 1 | . . . . 1 . Combat Hostiles 1 | . . . . 1 . Parts Melted 8 | . . . . 4 4 Heat Transferred 3597 | . 250 259 . 1480 1608 Parts Sabotaged . | . . . . . . Parts Stolen . | . . . . . . Parts Stripped . | . . . . . . Power Chain Reactions 4 | . 3 1 . . . Alert | -11 -10 -9 -8 -7 -6 ------- Run | Yrd Mat Mat Mat Fac Fac Peak Influence 493 | 10 214 97 250 281 493 Initial 130 | . 6 . . 50 130 Average 109 | 2 83 30 95 111 184 Maximum Alert Level 2 | . 1 . 1 1 2 Low Security (%) 80 | 100 94 100 91 76 56 Level 1 18 | . 5 . 8 23 37 Level 2 1 | . . . . . 5 Level 3 . | . . . . . . Level 4 . | . . . . . . Level 5 . | . . . . . . High Security . | . . . . . . Max Security . | . . . . . . Squads Dispatched 27 | . 1 3 1 7 15 Investigation 4 | . . 1 1 2 . Extermination 8 | . . . . 3 5 Reinforcement 13 | . 1 2 . 2 8 Assault . | . . . . . . Garrison 2 | . . . . . 2 Intercept . | . . . . . . Searches Triggered . | . . . . . . Construction Impeded 3 | . . . . . 3 Haulers Reinforced 2 | . . . . 1 1 Active Scanning Responses . | . . . . . . Cargo Convoy Interrupts . | . . . . . . Stealth | -11 -10 -9 -8 -7 -6 --------- Run | Yrd Mat Mat Mat Fac Fac Distress Signals 13 | . 1 1 3 3 5 Communications Jammed . | . . . . . . Distress Signals . | . . . . . . Times Spotted 127 | . 20 9 20 27 51 Peak Tracking Total 7 | . 3 3 7 5 7 Tactical Retreats 7 | . . . . 2 5 Traps | -11 -10 -9 -8 -7 -6 ------- Run | Yrd Mat Mat Mat Fac Fac Traps Triggered 5 | . 1 . 1 3 . Indirectly . | . . . . . . Trap Hack Attempts . | . . . . . . Triggered . | . . . . . . Disarmed 7 | . 7 . . . . Reprogrammed . | . . . . . . Reused . | . . . . . . Traps Extracted . | . . . . . . Installed . | . . . . . . Triggered . | . . . . . . Machines | -11 -10 -9 -8 -7 -6 ---------- Run | Yrd Mat Mat Mat Fac Fac Machines Disabled 10 | . 2 . . 1 7 Max in Single Turn 4 | . 1 . . 1 4 Machines Repaired . | . . . . . . Machines Dismantled . | . . . . . . Machines Sabotaged . | . . . . . . Overloaded Fab Kills . | . . . . . . Hacking | -11 -10 -9 -8 -7 -6 --------- Run | Yrd Mat Mat Mat Fac Fac Machines Accessed 28 | . 10 7 3 6 2 Terminals 17 | . 7 4 1 4 1 Fabricators 3 | . . . . 2 1 Repair Stations 2 | . 1 1 . . . Recycling Units 4 | . 2 1 1 . . Scanalyzers 2 | . . 1 1 . . Garrison Access . | . . . . . . Total Hacks 66 | . 23 13 15 13 2 Successful 43 | . 10 11 12 9 1 Failed 23 | . 13 2 3 4 1 Catastrophic 1 | . 1 . . . . Database Lockouts . | . . . . . . Manual 4 | . 4 . . . . Terminals 42 | . 20 8 5 8 1 Fabricators 6 | . . . . 5 1 Repair Stations 3 | . 1 2 . . . Recycling Units 4 | . 2 1 1 . . Scanalyzers 11 | . . 2 9 . . Garrison Access . | . . . . . . Terminal Hacks 22 | . 8 6 2 5 1 Record 3 | . . 1 . 2 . Robot Schematic 1 | . . . . 1 . Robot Analysis 1 | . . . . 1 . Open DSF 2 | . . . . 1 1 Level Access Points 1 | . 1 . . . . Emergency Access Points 1 | . . 1 . . . Alert Level 3 | . . 2 1 . . Unreport Threat 1 | . . . 1 . . Locate Traps 5 | . 4 1 . . . Disarm Traps 2 | . 2 . . . . Transport Status 1 | . . 1 . . . Hauler Manifests 1 | . 1 . . . . Fabricator Hacks 4 | . . . . 4 . Load Schematic 2 | . . . . 2 . Build 2 | . . . . 2 . Repair Station Hacks 2 | . . 2 . . . Scan Component 1 | . . 1 . . . Repair 1 | . . 1 . . . Recycling Unit Hacks 4 | . 2 1 1 . . Report Inventory 4 | . 2 1 1 . . Scanalyzer 11 | . . 2 9 . . Insert Component 5 | . . 1 4 . . Analyze 6 | . . 1 5 . . Garrison Access Hacks . | . . . . . . Unauthorized Hacks . | . . . . . . Terminals . | . . . . . . Fabricators . | . . . . . . Repair Stations . | . . . . . . Recycling Units . | . . . . . . Scanalyzers . | . . . . . . Garrison Access . | . . . . . . Data Cores Recovered 4 | . 1 2 . 1 . Used 1 | . . 1 . . . Hacking Detections 22 | . 9 5 1 5 2 Full Trace Events 2 | . . . . 2 . Feedback Events . | . . . . . . Feedback Blocked . | . . . . . . Robot Schematics Acquired 1 | . . . . 1 . Robots Built 1 | . . . . 1 . Authchips . | . . . . . . Time 81 | . . . . 81 . Total Robot Build Rating 1 | . . . . 1 . Part Schematics Acquired 5 | . . 1 4 . . Parts Built 2 | . . . . 2 . Authchips . | . . . . . . Time 36 | . . . . 36 . Total Part Build Rating 6 | . . . . 6 . Parts Repaired 1 | . . 1 . . . Time 32 | . . 32 . . . Parts Recycled . | . . . . . . Recycled Matter . | . . . . . . Retrieved Matter . | . . . . . . Retrieved Components . | . . . . . . Parts Scanalyzed 5 | . . 1 4 . . Part Schematics Acquired 5 | . . 1 4 . . Parts Damaged . | . . . . . . Bothacking | -11 -10 -9 -8 -7 -6 ------------ Run | Yrd Mat Mat Mat Fac Fac Used RIF Installer . | . . . . . . Robots Hacked 6 | . . 3 . 3 . Non-combat 5 | . . 3 . 2 . Combat 1 | . . . . 1 . Robot Hacks Applied 8 | . . 4 . 4 . parse_system 2 | . . 1 . 1 . no_distress 3 | . . 2 . 1 . find_fabricator 1 | . . . . 1 . find_recycling 1 | . . . . 1 . find_station 1 | . . 1 . . . Relay Couplers Released . | . . . . . . Fabnet Peak Effective % . | . . . . . . Robots Rewired . | . . . . . . Allies Hacked . | . . . . . . Hacks Repelled . | . . . . . . Allies | -11 -10 -9 -8 -7 -6 -------- Run | Yrd Mat Mat Mat Fac Fac Total Allies 1 | . . . . 1 . Largest Group 1 | . . . . 1 . Highest-Rated Group 8 | . . . . 8 . Highest-Rated Ally 8 | . . . . 8 . Total Orders 9 | . . . . 9 . STAY 1 | . . . . 1 . FOLLOW 2 | . . . . 2 . DROP 1 | . . . . 1 . PICKUP 2 | . . . . 2 . COLLECT 3 | . . . . 3 . Ally Attacks . | . . . . . . Total Damage . | . . . . . . Kills . | . . . . . . Allies Corrupted . | . . . . . . Allies Melted . | . . . . . . Intel | -11 -10 -9 -8 -7 -6 ------- Run | Yrd Mat Mat Mat Fac Fac Robot Analysis Total 1 | . . . . 1 . Derelict Logs Recovered . | . . . . . . Drone Launches . | . . . . . . Drone Recoveries . | . . . . . . Exploration | -11 -10 -9 -8 -7 -6 ------------- Run | Yrd Mat Mat Mat Fac Fac Turns Passed 7325 | 96 1212 1331 776 1884 2026 Spaces Moved 3508 | 60 943 699 260 750 796 Core 4 | 2 . . . . 2 Treads 2149 | . . 521 260 750 618 Legs . | . . . . . . Wheels 1355 | 58 943 178 . . 176 Hover . | . . . . . . Flight . | . . . . . . Fastest Speed 50 | 50 100 100 170 168 115 Average Speed 149 | 98 100 152 170 172 181 Slowest Speed 1550 | 100 100 170 170 250 1550 Overloaded Moves . | . . . . . . Propulsion Burnouts . | . . . . . . Robots Hopped . | . . . . . . Cave-ins Triggered . | . . . . . . Exploration Rate (%) 35 | 5 97 50 23 18 19 Regions Visited 5 Branch Regions . Pre-discovered Areas . | . . . . . . Known Exits Taken 3 | . 1 1 1 . . Unknown Exits Taken 2 | 1 . . . 1 . Scrap Searched . | . . . . . . Spaces Dug 1 | . . 1 . . . Terrain Destroyed 71 | . 8 4 . . 59 Melee . | . . . . . . Projectile 2 | . . 1 . . 1 AOE 69 | . 8 3 . . 58 Terrain Rammed . | . . . . . . Walls Destroyed . | . . . . . . Machines Disabled . | . . . . . . Actions | -11 -10 -9 -8 -7 -6 --------- Run | Yrd Mat Mat Mat Fac Fac Total 4955 | 85 1127 908 489 1180 1166 Wait 799 | 2 104 88 137 287 181 Move 3503 | 59 942 698 259 749 796 Hop . | . . . . . . Pick Up 107 | 12 18 31 9 24 13 Fast Attach 10 | 3 2 2 . 1 2 Attach 62 | 4 2 8 3 8 37 Detach 5 | . . . . 1 4 Swap 70 | . 4 19 12 17 18 Drop 57 | . 11 26 8 10 2 Fire 294 | 5 44 18 61 62 104 Melee 45 | . . 18 . 19 8 Ram . | . . . . . . Kick . | . . . . . . Crush 3 | . . . . 2 1 Escape Stasis . | . . . . . . Rewire . | . . . . . . Trap . | . . . . . . Miscellaneous . | . . . . . . Route ------- -11/Scrapyard -10/Materials (discovered 4 exits: *Mat x3 / [*Min]) -9/Materials (discovered 2 exits: *Mat / [*Min]) -8/Materials -7/Factory (discovered 2 exits: *Fac / *Low) -6/Factory History --------- Turn | Location | Event 21 | -11/Scrapyard | Discovered new exit (range 15) 97 | -11/Scrapyard | Entered Materials 231 | -10/Materials | Discovered new exit (range 16) 303 | -10/Materials | Build established: Mutant 371 | -10/Materials | Discovered new exit (range 4) 536 | -10/Materials | Discovered new exit (range 13) 543 | -10/Materials | Identified exit to Materials 1309 | -10/Materials | Entered another Materials area 1309 | -9/Materials | Evolved 2 slots: Propulsion x1, Utility x1 1408 | -9/Materials | Discovered new exit (range 8) 1501 | -9/Materials | Lost 3 parts (1p2w) 1522 | -9/Materials | Repaired Particle Gun 1885 | -9/Materials | Discovered new exit (range 12) 1969 | -9/Materials | Identified exit to Materials 2640 | -9/Materials | Entered another Materials area 2640 | -8/Materials | Evolved 2 slots: Propulsion x1, Utility x1 3106 | -8/Materials | Build established: Scavenger-Mutant 3353 | -8/Materials | Discovered new exit (range 16) 3414 | -8/Materials | Identified exit to Factory 3416 | -8/Materials | Entered Factory 3416 | -7/Factory | Evolved 2 slots: Propulsion x1, Weapon x1 3881 | -7/Factory | Build established: Scavenger-Skirmisher 3889 | -7/Factory | Discovered new exit (range 15) 4099 | -7/Factory | Fabricated R-06 Scavenger (x1) 4236 | -7/Factory | Identified exit to Lower Caves 4273 | -7/Factory | Build established: Scavenger-Gunner 4442 | -7/Factory | Fabricated Arm. Treads (x2) 4989 | -7/Factory | Build established: Gunner 5285 | -7/Factory | Discovered new exit (range 5) 5300 | -7/Factory | Entered another Factory area 5300 | -6/Factory | Evolved 2 slots: Utility x2 5603 | -6/Factory | Build established: Hacker-Tank 6521 | -6/Factory | Lost 4 parts (1n2u1w) 6852 | -6/Factory | Lost 5 parts (1n1u3w) 6927 | -6/Factory | Lost 4 parts (1p1n2w) 7202 | -6/Factory | Garrison activated, responded to threat 7232 | -6/Factory | Lost 4 parts (1p2u1w) 7284 | -6/Factory | Core integrity fell below 50% 7309 | -6/Factory | Core integrity fell below 20% 7326 | -6/Factory | Destroyed by G-50 Soldier with Heavy Laser Last Messages --------------- 07303_ U-05 Engineer lays Concrete. 07303_ M-28 Smith repairs G-50 Soldier. 07304_ U-05 Engineer lays Concrete. 07305_ Penetrated by Slug. 07305_ Med. Treads destroyed. 07307_ Cloaking Device destroyed. 07308_ Penetrated by Slug. 07308_ Weight Redist. System destroyed. 07309_ H-66 Slayer Flexi-carbon Leg severed. 07312_ System corrupted: Component data lost. 07312_ Sneak attack on M-28 Smith. 07312_ Destroyed Lgt. Deuterium Engine. 07312_ M-28 Smith destroyed. 07315_ Acquired Backup Propulsion III. 07316_ Penetrated by Slug. 07319_ Com. Wheel destroyed. 07321_ Carbide Saw destroyed. 07322_ Penetrated by Slug. 07322_ Backup Propulsion III destroyed. 07325_ R-10 Processor collects Shock Rifle. Map ----- +----------------------------------------------------+ | | | | | | | | | | | | | | | | | | | | | | | | | | | | | | | | | | | | | | | | | | | | | | | ????????????##################???????????????????# | | ????????????# """" *[ [% ##???????????????????# | | ????????????# ""R"" g![[@! ##???????????????????# | | ????????????# "" "" """[=hg##???????????????????# | | ????????????# *"" # #??????????????????# | | ????????????# = [ ###??????????????????# | | ????????????# " % " ##???????????????????# | | ????????????# "" #????????????????????# | | ????????????# """" " """ #????????????????????# | | ????????????# u R #????????????????????# | | ????????????# #?????????####???????# | | ????????????########u##################T ######### | | ?????? Y | | ?????? | | ?????? | | ??????? | | ??????? | | ???????? | | ??????? | | ????????###+########+############################# | | ????????? ??????? ?????????????????????????????? | | ????????? ??????? ??????????????????????????????? | | ?????????????????!???????????????????????????????? | | ?????????????????????????????????????????????????? | | ?????????????????????????????????????????????????? | | ?????????????????????????????????????????????????? | | ?????????????????????????????????????????????????? | +----------------------------------------------------+ Best States ------------- Heat Dissipation 73 Energy Generation 18 Energy Capacity 300 Matter Stores 300 Matter Capacity 300 Sight Range 16 Terrain Scan Density 10 Cloak Strength 2 Armor Coverage 300 Resistance: EM 15 Evasion (%) 40 Recoil Reduction 5 Offensive Hacking 20 Authchip Count 1 Item Schematics ----------------- Grenade Launcher | -9/Materials | Scanalyzed Cooling System | -8/Materials | Scanalyzed Hardlight Generator | -8/Materials | Scanalyzed Mni. Grenade Launcher | -8/Materials | Scanalyzed Arm. Treads | -8/Materials | Scanalyzed Robot Schematics ------------------ R-06 Scavenger | -7/Factory | Hacked Fabricated ------------ R-06 Scavenger | x1 | -7/Factory Arm. Treads | x2 | -7/Factory Alien Tech Used ----------------- None Achievements -------------- Dynamic Key My Command Is Your Wish Oops Challenges ------------ None Game ------ Seed GuidanceMassThruster Manual? 0 Play Time 02:21:15 Cumulative 11.4 hours Start 2024.04.08 @ 03:19:26 End 2024.04.08 @ 05:48:00 Sessions 1 Manual Loads 0 Difficulty Rogue Special Mode None Game No. 4 Rogue 4 Adventurer 0 Explorer 0 Win Type - Total 0 Types 0/0/0/0/0/0/0/0/0 Lore% 7 Gallery% 16 Achievement% 13 Wizard Run 0 Options --------- Layout 0 ASCII 0 Keyboard 0 Movement Mouse Keybinds 0 Fullscreen 2 Font 18/SmallcapsGlow Map View 76x50 Zoom Use 0% Tactical HUD 1 Map Filters NONE Filters NONE Steam 1 RUN: c44b16e8-6385-41aa-b11e-1fffc05b7949